[Event "*** Titled Tuesday Blitz"]
[Site "Chess.com"]
[Date "2018.09.04"]
[Round "5"]
[White "Arm-Akiba"]
[Black "HonzaVykouk"]
[Result "1-0"]
[WhiteElo "2764"]
[BlackElo "2554"]
[TimeControl "180+2"]
[EndTime "14:44:53 PDT"]
[Termination "Arm-Akiba won by checkmate"]

1. d4 {[%clk 0:03:01.9]} 1... Nf6 {[%clk 0:03:00.3]} 2. c4 {[%clk 0:03:02.3]}
2... g6 {[%clk 0:03:01.3]} 3. Nf3 {[%clk 0:03:02.5]} 3... Bg7 {[%clk 0:03:02.5]}
4. g3 {[%clk 0:03:04]} 4... O-O {[%clk 0:03:03.4]} 5. Bg2 {[%clk 0:03:05.3]}
5... d6 {[%clk 0:03:03.1]} 6. O-O {[%clk 0:03:05.9]} 6... Nc6 {[%clk 0:03:04.3]}
7. Nc3 {[%clk 0:03:07]} 7... a6 {[%clk 0:03:04.3]} 8. Bf4 {[%clk 0:03:06.8]}
8... Rb8 {[%clk 0:03:04.5]} 9. Rc1 {[%clk 0:03:06.7]} 9... Bd7 {[%clk 0:03:02]}
10. Qd2 {[%clk 0:02:42.4]} 10... b5 {[%clk 0:02:57.2]} 11. Nd5 {[%clk 0:02:43]}
11... bxc4 {[%clk 0:02:52.5]} 12. Nxf6+ {[%clk 0:02:43]} 12... Bxf6 {[%clk
0:02:53.3]} 13. Rxc4 {[%clk 0:02:44]} 13... e5 {[%clk 0:02:51.4]} 14. dxe5
{[%clk 0:02:44.4]} 14... Nxe5 {[%clk 0:02:49.8]} 15. Nxe5 {[%clk 0:02:43.9]}
15... dxe5 {[%clk 0:02:50.9]} 16. Bh6 {[%clk 0:02:43]} 16... Be6 {[%clk
0:02:49.2]} 17. Rc2 {[%clk 0:02:24.9]} 17... Qxd2 {[%clk 0:02:45.9]} 18. Rxd2
{[%clk 0:02:26.7]} 18... Rfd8 {[%clk 0:02:47.4]} 19. b3 {[%clk 0:02:25.9]} 19...
g5 {[%clk 0:02:46.1]} 20. Rfd1 {[%clk 0:02:20.9]} 20... Rxd2 {[%clk 0:02:43.2]}
21. Rxd2 {[%clk 0:02:22.8]} 21... Be7 {[%clk 0:02:44.9]} 22. Rc2 {[%clk
0:02:19.1]} 22... c5 {[%clk 0:02:40.7]} 23. h4 {[%clk 0:02:15.7]} 23... gxh4
{[%clk 0:02:38.2]} 24. gxh4 {[%clk 0:02:17.6]} 24... Rb4 {[%clk 0:02:36.4]} 25.
e4 {[%clk 0:01:22.1]} 25... c4 {[%clk 0:02:33.7]} 26. h5 {[%clk 0:01:21.3]}
26... Bf8 {[%clk 0:02:31.7]} 27. Bd2 {[%clk 0:01:04]} 27... cxb3 {[%clk
0:02:28.8]} 28. axb3 {[%clk 0:01:05.9]} 28... Rxb3 {[%clk 0:02:27.3]} 29. h6
{[%clk 0:01:01.6]} 29... a5 {[%clk 0:02:24.5]} 30. Bxa5 {[%clk 0:00:45.3]} 30...
Bxh6 {[%clk 0:02:23.6]} 31. Bd2 {[%clk 0:00:45]} 31... Bxd2 {[%clk 0:02:23.2]}
32. Rxd2 {[%clk 0:00:46.9]} 32... Kg7 {[%clk 0:02:23]} 33. f3 {[%clk 0:00:47.3]}
33... Kf6 {[%clk 0:02:19.9]} 34. Kf2 {[%clk 0:00:48.3]} 34... Ra3 {[%clk
0:02:19.4]} 35. Kg3 {[%clk 0:00:49]} 35... Kg5 {[%clk 0:02:17.3]} 36. Rd8 {[%clk
0:00:48.6]} 36... f6 {[%clk 0:02:16.7]} 37. Re8 {[%clk 0:00:48.6]} 37... Ra6
{[%clk 0:02:13.1]} 38. Re7 {[%clk 0:00:49.4]} 38... h5 {[%clk 0:02:12.6]} 39.
Rg7+ {[%clk 0:00:50.1]} 39... Kh6 {[%clk 0:02:13.1]} 40. Re7 {[%clk 0:00:51]}
40... Kg6 {[%clk 0:02:07.3]} 41. Kh4 {[%clk 0:00:50.1]} 41... Bf7 {[%clk
0:02:07.7]} 42. Bh3 {[%clk 0:00:49.9]} 42... Ra3 {[%clk 0:02:06.2]} 43. Bf5+
{[%clk 0:00:49.8]} 43... Kg7 {[%clk 0:01:54.4]} 44. Be6 {[%clk 0:00:50.7]} 44...
Rxf3 {[%clk 0:01:11]} 45. Bxf7 {[%clk 0:00:48.5]} 45... Kf8 {[%clk 0:00:58.4]}
46. Ra7 {[%clk 0:00:47]} 46... f5 {[%clk 0:00:48.1]} 47. exf5 {[%clk 0:00:34.5]}
47... Rxf5 {[%clk 0:00:46.6]} 48. Bg6 {[%clk 0:00:35.6]} 48... Rf6 {[%clk
0:00:45]} 49. Kg5 {[%clk 0:00:32.2]} 49... Re6 {[%clk 0:00:45.5]} 50. Bf5 {[%clk
0:00:33.2]} 50... Re7 {[%clk 0:00:43]} 51. Ra8+ {[%clk 0:00:33.5]} 51... Kg7
{[%clk 0:00:40.7]} 52. Be4 {[%clk 0:00:31.8]} 52... Re6 {[%clk 0:00:39.4]} 53.
Ra7+ {[%clk 0:00:31.8]} 53... Kf8 {[%clk 0:00:40.6]} 54. Kxh5 {[%clk 0:00:32.3]}
54... Rf6 {[%clk 0:00:38.8]} 55. Kg5 {[%clk 0:00:31.9]} 55... Rf7 {[%clk
0:00:37.7]} 56. Ra8+ {[%clk 0:00:32.3]} 56... Ke7 {[%clk 0:00:36.5]} 57. Ra7+
{[%clk 0:00:28.2]} 57... Kf8 {[%clk 0:00:37.6]} 58. Ra6 {[%clk 0:00:29.1]} 58...
Ke7 {[%clk 0:00:35.7]} 59. Bf5 {[%clk 0:00:29]} 59... Rf8 {[%clk 0:00:34.1]} 60.
Re6+ {[%clk 0:00:26.7]} 60... Kd7 {[%clk 0:00:35.3]} 61. Rf6+ {[%clk 0:00:24.2]}
61... Ke7 {[%clk 0:00:36]} 62. Ra6 {[%clk 0:00:24.7]} 62... Rg8+ {[%clk
0:00:33.4]} 63. Bg6 {[%clk 0:00:25.6]} 63... Rf8 {[%clk 0:00:32.2]} 64. Be4
{[%clk 0:00:24.7]} 64... Rf1 {[%clk 0:00:28.2]} 65. Bf5 {[%clk 0:00:24.2]} 65...
Rc1 {[%clk 0:00:25.9]} 66. Re6+ {[%clk 0:00:22.2]} 66... Kd7 {[%clk 0:00:24]}
67. Rxe5+ {[%clk 0:00:20.1]} 67... Kd6 {[%clk 0:00:23.5]} 68. Re8 {[%clk
0:00:21]} 68... Kd5 {[%clk 0:00:20.8]} 69. Kf6 {[%clk 0:00:18.5]} 69... Rf1
{[%clk 0:00:20.5]} 70. Rd8+ {[%clk 0:00:18.6]} 70... Kc5 {[%clk 0:00:20.9]} 71.
Ke5 {[%clk 0:00:19.8]} 71... Re1+ {[%clk 0:00:20.4]} 72. Be4 {[%clk 0:00:21.3]}
72... Rg1 {[%clk 0:00:20.7]} 73. Rc8+ {[%clk 0:00:21.7]} 73... Kb6 {[%clk
0:00:19.6]} 74. Bd5 {[%clk 0:00:21]} 74... Rg5+ {[%clk 0:00:18.8]} 75. Kd6
{[%clk 0:00:21.9]} 75... Rg6+ {[%clk 0:00:14.3]} 76. Be6 {[%clk 0:00:22.7]}
76... Ka5 {[%clk 0:00:13.2]} 77. Rb8 {[%clk 0:00:23.3]} 77... Rf6 {[%clk
0:00:12]} 78. Kd5 {[%clk 0:00:20]} 78... Ka6 {[%clk 0:00:10.9]} 79. Bd7 {[%clk
0:00:19.3]} 79... Rb6 {[%clk 0:00:09.6]} 80. Ra8+ {[%clk 0:00:18.5]} 80... Kb7
{[%clk 0:00:10.7]} 81. Ra1 {[%clk 0:00:19.8]} 81... Kc7 {[%clk 0:00:11.9]} 82.
Be8 {[%clk 0:00:19.8]} 82... Rd6+ {[%clk 0:00:13]} 83. Kc5 {[%clk 0:00:20.5]}
83... Rh6 {[%clk 0:00:14.4]} 84. Ra7+ {[%clk 0:00:20.4]} 84... Kd8 {[%clk
0:00:15.8]} 85. Bc6 {[%clk 0:00:20.6]} 85... Rh5+ {[%clk 0:00:16.7]} 86. Bd5
{[%clk 0:00:19.9]} 86... Kc8 {[%clk 0:00:16.8]} 87. Kd6 {[%clk 0:00:15.2]} 87...
Kb8 {[%clk 0:00:15.6]} 88. Rb7+ {[%clk 0:00:14.9]} 88... Kc8 {[%clk 0:00:16.9]}
89. Ra7 {[%clk 0:00:15.7]} 89... Kb8 {[%clk 0:00:17.5]} 90. Ra8# {[%clk
0:00:16.6]} 1-0

[Event "*** Titled Tuesday Blitz"]
[Site "Chess.com"]
[Date "2018.09.04"]
[Round "5"]
[White "DanielNaroditsky"]
[Black "oskariot"]
[Result "0-1"]
[WhiteElo "2949"]
[BlackElo "2490"]
[TimeControl "180+2"]
[EndTime "14:45:01 PDT"]
[Termination "oskariot won by resignation"]

1. d4 {[%clk 0:03:01.9]} 1... g6 {[%clk 0:02:58.4]} 2. e4 {[%clk 0:03:02.8]}
2... Bg7 {[%clk 0:02:48.6]} 3. Nc3 {[%clk 0:03:04]} 3... d6 {[%clk 0:02:48]} 4.
Nf3 {[%clk 0:03:04.4]} 4... Nf6 {[%clk 0:02:48.5]} 5. Be2 {[%clk 0:03:05.8]}
5... O-O {[%clk 0:02:49.3]} 6. O-O {[%clk 0:03:07.5]} 6... Bg4 {[%clk
0:02:50.8]} 7. Be3 {[%clk 0:03:07.5]} 7... Nc6 {[%clk 0:02:51.3]} 8. Qc1 {[%clk
0:03:06]} 8... e5 {[%clk 0:02:49.6]} 9. dxe5 {[%clk 0:03:07.9]} 9... Nxe5 {[%clk
0:02:43.3]} 10. Nxe5 {[%clk 0:03:08.7]} 10... dxe5 {[%clk 0:02:44.6]} 11. Rd1
{[%clk 0:03:04.7]} 11... Qc8 {[%clk 0:02:23.6]} 12. f3 {[%clk 0:02:47.7]} 12...
Be6 {[%clk 0:02:23.6]} 13. Bh6 {[%clk 0:02:43.4]} 13... c6 {[%clk 0:02:16.2]}
14. Bxg7 {[%clk 0:02:39]} 14... Kxg7 {[%clk 0:02:17]} 15. Qe3 {[%clk 0:02:40.7]}
15... Qc7 {[%clk 0:02:14.1]} 16. a4 {[%clk 0:02:41.9]} 16... Qb6 {[%clk
0:02:06.1]} 17. Qxb6 {[%clk 0:02:13.8]} 17... axb6 {[%clk 0:02:07.9]} 18. Kf2
{[%clk 0:02:15.6]} 18... Rfd8 {[%clk 0:02:08.4]} 19. Rxd8 {[%clk 0:02:10.9]}
19... Rxd8 {[%clk 0:02:10.3]} 20. Ke3 {[%clk 0:02:12.8]} 20... Ra8 {[%clk
0:02:06.2]} 21. Rd1 {[%clk 0:02:11.4]} 21... Kf8 {[%clk 0:02:06.3]} 22. g3
{[%clk 0:02:11.6]} 22... Ke7 {[%clk 0:01:48.8]} 23. f4 {[%clk 0:02:11.2]} 23...
Nd7 {[%clk 0:01:46.7]} 24. b3 {[%clk 0:01:58.5]} 24... f6 {[%clk 0:01:27.9]} 25.
Nb1 {[%clk 0:01:51.6]} 25... Nc5 {[%clk 0:01:16.7]} 26. Nd2 {[%clk 0:01:46.1]}
26... Rd8 {[%clk 0:01:17.1]} 27. fxe5 {[%clk 0:01:33.6]} 27... fxe5 {[%clk
0:01:19]} 28. Nf3 {[%clk 0:01:35.3]} 28... Rxd1 {[%clk 0:01:19.5]} 29. Bxd1
{[%clk 0:01:37.2]} 29... Bg4 {[%clk 0:01:16.1]} 30. Be2 {[%clk 0:01:29.5]} 30...
Bxf3 {[%clk 0:00:49.5]} 31. Bxf3 {[%clk 0:01:30.9]} 31... Ne6 {[%clk 0:00:44.9]}
32. Bg4 {[%clk 0:01:28.9]} 32... Kd6 {[%clk 0:00:32.1]} 33. c3 {[%clk
0:01:14.6]} 33... Nc5 {[%clk 0:00:30.7]} 34. Bd1 {[%clk 0:01:15.9]} 34... Nd7
{[%clk 0:00:28.1]} 35. b4 {[%clk 0:01:15.3]} 35... Nf6 {[%clk 0:00:22.2]} 36. h3
{[%clk 0:01:16.7]} 36... h6 {[%clk 0:00:20.9]} 37. Bb3 {[%clk 0:01:10.6]} 37...
g5 {[%clk 0:00:15.1]} 38. Bf7 {[%clk 0:01:10.5]} 38... Ke7 {[%clk 0:00:13.5]}
39. Bg6 {[%clk 0:01:08.9]} 39... Kd6 {[%clk 0:00:14.7]} 40. Bf5 {[%clk 0:01:10]}
40... Kc7 {[%clk 0:00:11.2]} 41. h4 {[%clk 0:00:55.9]} 41... Kd6 {[%clk
0:00:06.9]} 42. hxg5 {[%clk 0:00:48.5]} 42... hxg5 {[%clk 0:00:08.8]} 43. g4
{[%clk 0:00:50.4]} 43... Kc7 {[%clk 0:00:09.6]} 44. Kd3 {[%clk 0:00:51.4]} 44...
Ne8 {[%clk 0:00:10.5]} 45. c4 {[%clk 0:00:38.7]} 45... c5 {[%clk 0:00:10]} 46.
Kc3 {[%clk 0:00:37.7]} 46... Nd6 {[%clk 0:00:10.5]} 47. Kb3 {[%clk 0:00:31.9]}
47... Kc6 {[%clk 0:00:11]} 48. Be6 {[%clk 0:00:26.8]} 48... Kc7 {[%clk
0:00:10.1]} 49. Bd5 {[%clk 0:00:26.1]} 49... Ne8 {[%clk 0:00:10.9]} 50. Be6
{[%clk 0:00:20.8]} 50... Nd6 {[%clk 0:00:11.2]} 51. Bf5 {[%clk 0:00:22.1]} 51...
Kc6 {[%clk 0:00:11.9]} 52. Kc3 {[%clk 0:00:16.9]} 52... Ne8 {[%clk 0:00:09.8]}
53. Kb3 {[%clk 0:00:10.5]} 53... Nd6 {[%clk 0:00:10.6]} 54. Kc3 {[%clk
0:00:11.8]} 54... Ne8 {[%clk 0:00:10.5]} 55. Be6 {[%clk 0:00:13.5]} 55... Kc7
{[%clk 0:00:08.3]} 56. a5 {[%clk 0:00:11.1]} 56... bxa5 {[%clk 0:00:05.9]} 57.
bxa5 {[%clk 0:00:08.7]} 57... Nd6 {[%clk 0:00:04.6]} 58. Bd5 {[%clk 0:00:09]}
58... Ne8 {[%clk 0:00:05]} 59. Be6 {[%clk 0:00:09.2]} 59... Nd6 {[%clk
0:00:05.4]} 60. Bf5 {[%clk 0:00:10.3]} 60... Kb8 {[%clk 0:00:05.2]} 61. Kb3
{[%clk 0:00:07.3]} 61... Ka7 {[%clk 0:00:06.5]} 62. Ka4 {[%clk 0:00:06.3]} 62...
Ka6 {[%clk 0:00:07.8]} 63. Bd7 {[%clk 0:00:05.4]} 63... Nxe4 {[%clk 0:00:07.7]}
64. Bb5+ {[%clk 0:00:05.7]} 64... Ka7 {[%clk 0:00:09]} 65. Be8 {[%clk
0:00:04.7]} 65... Nd6 {[%clk 0:00:10.1]} 66. Bg6 {[%clk 0:00:05.9]} 66... e4
{[%clk 0:00:09.6]} 67. Bh7 {[%clk 0:00:05.5]} 67... Ka6 {[%clk 0:00:10.8]} 68.
Bg6 {[%clk 0:00:05.1]} 68... e3 {[%clk 0:00:05.9]} 69. Bd3 {[%clk 0:00:07]}
69... Nf7 {[%clk 0:00:05.5]} 70. Kb3 {[%clk 0:00:08.7]} 70... Ne5 {[%clk
0:00:06.5]} 71. Be2 {[%clk 0:00:08]} 71... Kxa5 {[%clk 0:00:07.9]} 72. Kc3
{[%clk 0:00:09]} 72... Ka4 {[%clk 0:00:08.9]} 73. Bd1+ {[%clk 0:00:09]} 73...
Ka3 {[%clk 0:00:10.1]} 74. Be2 {[%clk 0:00:10.7]} 74... Ka2 {[%clk 0:00:11.2]}
75. Kc2 {[%clk 0:00:11.8]} 75... b6 {[%clk 0:00:12.5]} 76. Kc3 {[%clk
0:00:08.5]} 76... Kb1 {[%clk 0:00:12.1]} 77. Bd1 {[%clk 0:00:08.8]} 77... Kc1
{[%clk 0:00:08.9]} 78. Be2 {[%clk 0:00:08.9]} 78... Ng6 {[%clk 0:00:10.1]} 79.
Kd3 {[%clk 0:00:06.6]} 79... Nf4+ {[%clk 0:00:10.9]} 80. Kxe3 {[%clk 0:00:08.3]}
80... Nxe2 {[%clk 0:00:12.8]} 81. Kxe2 {[%clk 0:00:10.2]} 81... Kc2 {[%clk
0:00:14.7]} 82. Ke3 {[%clk 0:00:12.1]} 82... Kc3 {[%clk 0:00:16.2]} 83. Ke4
{[%clk 0:00:14]} 83... Kxc4 {[%clk 0:00:17.6]} 84. Kf5 {[%clk 0:00:15.9]} 84...
b5 {[%clk 0:00:19.5]} 85. Kxg5 {[%clk 0:00:17.8]} 85... b4 {[%clk 0:00:21.4]}
86. Kf6 {[%clk 0:00:19.7]} 86... b3 {[%clk 0:00:23.3]} 87. g5 {[%clk 0:00:21.6]}
87... b2 {[%clk 0:00:25.2]} 88. g6 {[%clk 0:00:23.5]} 88... b1=Q {[%clk
0:00:27.1]} 89. g7 {[%clk 0:00:25.4]} 89... Qg1 {[%clk 0:00:28.5]} 90. Ke7
{[%clk 0:00:26.9]} 90... Qxg7+ {[%clk 0:00:28.6]} 91. Kd6 {[%clk 0:00:28.8]}
91... Kd3 {[%clk 0:00:30.2]} 92. Kc6 {[%clk 0:00:30.6]} 92... c4 {[%clk
0:00:31.2]} 93. Kb5 {[%clk 0:00:32.5]} 93... c3 {[%clk 0:00:32]} 94. Ka4 {[%clk
0:00:34.3]} 94... c2 {[%clk 0:00:33.3]} 95. Kb5 {[%clk 0:00:36.2]} 95... c1=Q
{[%clk 0:00:34.1]} 96. Ka4 {[%clk 0:00:38.1]} 96... Qb7 {[%clk 0:00:34]} 0-1

[Event "*** Titled Tuesday Blitz"]
[Site "Chess.com"]
[Date "2018.09.04"]
[Round "5"]
[White "KhalilMousavi77"]
[Black "johnathan113"]
[Result "1-0"]
[WhiteElo "2756"]
[BlackElo "2593"]
[TimeControl "180+2"]
[EndTime "14:45:11 PDT"]
[Termination "KhalilMousavi77 won on time"]

1. e4 {[%clk 0:03:01.5]} 1... c5 {[%clk 0:03:01.1]} 2. d4 {[%clk 0:03:01.9]}
2... cxd4 {[%clk 0:03:02.3]} 3. c3 {[%clk 0:03:03.2]} 3... d3 {[%clk 0:03:03]}
4. Bxd3 {[%clk 0:03:04]} 4... g6 {[%clk 0:03:04.9]} 5. Nf3 {[%clk 0:03:05.2]}
5... Bg7 {[%clk 0:03:06.5]} 6. O-O {[%clk 0:03:07.1]} 6... Nc6 {[%clk
0:03:07.4]} 7. Qe2 {[%clk 0:03:09]} 7... Nf6 {[%clk 0:03:07.9]} 8. Rd1 {[%clk
0:03:10.9]} 8... O-O {[%clk 0:03:07.6]} 9. Na3 {[%clk 0:03:07.9]} 9... a6 {[%clk
0:02:50.6]} 10. e5 {[%clk 0:03:06.9]} 10... Ng4 {[%clk 0:02:50.6]} 11. Bf4
{[%clk 0:03:06]} 11... Qc7 {[%clk 0:02:52]} 12. Nc4 {[%clk 0:03:00.3]} 12... b5
{[%clk 0:02:53]} 13. Ne3 {[%clk 0:02:54.5]} 13... Ngxe5 {[%clk 0:02:25.9]} 14.
Nd5 {[%clk 0:02:54.2]} 14... Nxf3+ {[%clk 0:02:12.2]} 15. Qxf3 {[%clk
0:02:47.4]} 15... Qd8 {[%clk 0:02:13.6]} 16. Bc7 {[%clk 0:02:41.2]} 16... Qe8
{[%clk 0:02:15]} 17. a4 {[%clk 0:02:41.8]} 17... bxa4 {[%clk 0:02:10.3]} 18.
Rxa4 {[%clk 0:02:40.3]} 18... d6 {[%clk 0:02:11]} 19. Rda1 {[%clk 0:02:34.3]}
19... Ne5 {[%clk 0:02:04.5]} 20. Qe2 {[%clk 0:02:25.2]} 20... Nxd3 {[%clk
0:01:22]} 21. Qxd3 {[%clk 0:02:25.7]} 21... Bd7 {[%clk 0:01:20.9]} 22. Rxa6
{[%clk 0:02:21.2]} 22... Bb5 {[%clk 0:01:20]} 23. Rxa8 {[%clk 0:02:21]} 23...
Bxd3 {[%clk 0:01:19.3]} 24. Rxe8 {[%clk 0:02:21.3]} 24... Rxe8 {[%clk
0:01:21.2]} 25. Re1 {[%clk 0:02:22.5]} 25... e6 {[%clk 0:01:13.1]} 26. Nb4
{[%clk 0:02:18.8]} 26... Bc4 {[%clk 0:01:08.9]} 27. Bxd6 {[%clk 0:02:19.3]}
27... Rd8 {[%clk 0:01:10.3]} 28. Bf4 {[%clk 0:02:20]} 28... h6 {[%clk
0:01:01.5]} 29. h4 {[%clk 0:02:20.4]} 29... Kh7 {[%clk 0:00:55.8]} 30. Kh2
{[%clk 0:02:18.3]} 30... Bf6 {[%clk 0:00:56.9]} 31. Kg3 {[%clk 0:02:18.6]} 31...
g5 {[%clk 0:00:57.7]} 32. hxg5 {[%clk 0:02:19.9]} 32... hxg5 {[%clk 0:00:59.6]}
33. Be5 {[%clk 0:02:21.2]} 33... Kg6 {[%clk 0:00:58.5]} 34. Bxf6 {[%clk
0:02:22.7]} 34... Kxf6 {[%clk 0:01:00.4]} 35. Re4 {[%clk 0:02:24.1]} 35... Bb3
{[%clk 0:01:01.9]} 36. Rd4 {[%clk 0:02:24]} 36... Ra8 {[%clk 0:00:57.6]} 37. Rd7
{[%clk 0:02:21.7]} 37... Ra1 {[%clk 0:00:57.3]} 38. Nc6 {[%clk 0:02:19.1]} 38...
Rb1 {[%clk 0:00:52]} 39. Nd4 {[%clk 0:02:12]} 39... Bd5 {[%clk 0:00:46.2]} 40.
b4 {[%clk 0:02:12.4]} 40... Rd1 {[%clk 0:00:45.8]} 41. f3 {[%clk 0:02:10]} 41...
Rd3 {[%clk 0:00:43.7]} 42. Rc7 {[%clk 0:02:07.5]} 42... e5 {[%clk 0:00:44.9]}
43. Rc5 {[%clk 0:01:54.1]} 43... exd4 {[%clk 0:00:22.2]} 44. Rxd5 {[%clk
0:01:54.3]} 44... Rxc3 {[%clk 0:00:23.7]} 45. Rxd4 {[%clk 0:01:54.2]} 45... Rb3
{[%clk 0:00:25.4]} 46. Rc4 {[%clk 0:01:48.8]} 46... Kg6 {[%clk 0:00:25.5]} 47.
Rc6+ {[%clk 0:01:49.4]} 47... f6 {[%clk 0:00:26.7]} 48. Rb6 {[%clk 0:01:50.6]}
48... Kg7 {[%clk 0:00:26.4]} 49. Rb7+ {[%clk 0:01:45]} 49... Kg6 {[%clk
0:00:27.5]} 50. Rb8 {[%clk 0:01:43.9]} 50... Rb2 {[%clk 0:00:28.1]} 51. Rb6
{[%clk 0:01:42.5]} 51... Kg7 {[%clk 0:00:25.7]} 52. Rb8 {[%clk 0:01:42.1]} 52...
Kg6 {[%clk 0:00:27.3]} 53. b5 {[%clk 0:01:43.3]} 53... Kf5 {[%clk 0:00:28.8]}
54. b6 {[%clk 0:01:44.2]} 54... Kg6 {[%clk 0:00:29.4]} 55. Kh2 {[%clk 0:01:43]}
55... Rb1 {[%clk 0:00:27.3]} 56. b7 {[%clk 0:01:37.4]} 56... Kg7 {[%clk
0:00:20.9]} 57. Kg3 {[%clk 0:01:38.2]} 57... Rb2 {[%clk 0:00:19.2]} 58. Kh3
{[%clk 0:01:32.1]} 58... f5 {[%clk 0:00:19]} 59. f4 {[%clk 0:01:14.3]} 59...
gxf4 {[%clk 0:00:18.4]} 60. Kh4 {[%clk 0:01:15.2]} 60... Rb4 {[%clk 0:00:12.3]}
61. Kg5 {[%clk 0:01:10.4]} 61... Kh7 {[%clk 0:00:13.8]} 62. Kxf5 {[%clk
0:01:09.1]} 62... Kg7 {[%clk 0:00:15.4]} 63. Ke5 {[%clk 0:01:05.1]} 63... Kh7
{[%clk 0:00:16.1]} 64. Kf6 {[%clk 0:01:05.2]} 64... Rb6+ {[%clk 0:00:16.7]} 65.
Kf5 {[%clk 0:01:05.7]} 65... Rb4 {[%clk 0:00:18.1]} 66. Ke5 {[%clk 0:01:05.3]}
66... Kg7 {[%clk 0:00:19.2]} 67. Kd6 {[%clk 0:01:06]} 67... Rb1 {[%clk
0:00:17.4]} 68. Ke5 {[%clk 0:01:06.3]} 68... Rb4 {[%clk 0:00:18]} 69. Kf5 {[%clk
0:01:04.6]} 69... Kh7 {[%clk 0:00:19]} 70. Kf6 {[%clk 0:01:03.8]} 70... Rb6+
{[%clk 0:00:18.6]} 71. Kf7 {[%clk 0:01:04.3]} 71... Rb4 {[%clk 0:00:20.5]} 72.
Ke6 {[%clk 0:01:03.2]} 72... Rb6+ {[%clk 0:00:21.3]} 73. Ke5 {[%clk 0:01:01.8]}
73... Rb4 {[%clk 0:00:22.3]} 74. Kf6 {[%clk 0:01:02.8]} 74... Rb6+ {[%clk
0:00:23.3]} 75. Kf7 {[%clk 0:01:04]} 75... Rb4 {[%clk 0:00:24]} 76. Ke8 {[%clk
0:01:01.8]} 76... Rb2 {[%clk 0:00:22.9]} 77. Kd7 {[%clk 0:01:02.5]} 77... Rb1
{[%clk 0:00:21.9]} 78. Ke6 {[%clk 0:01:03.2]} 78... Rb2 {[%clk 0:00:21.4]} 79.
Rf8 {[%clk 0:01:04.1]} 79... Rxb7 {[%clk 0:00:21.8]} 80. Rf7+ {[%clk 0:01:05.4]}
80... Rxf7 {[%clk 0:00:23.1]} 81. Kxf7 {[%clk 0:01:07]} 81... Kh6 {[%clk
0:00:24.5]} 82. Kf6 {[%clk 0:01:08.4]} 82... Kh7 {[%clk 0:00:19.9]} 83. Kf5
{[%clk 0:01:08.4]} 83... f3 {[%clk 0:00:19.1]} 84. gxf3 {[%clk 0:01:09.6]} 84...
Kg8 {[%clk 0:00:20.8]} 85. Kg6 {[%clk 0:01:10.3]} 85... Kf8 {[%clk 0:00:22.6]}
86. Kf6 {[%clk 0:01:11.5]} 86... Ke8 {[%clk 0:00:23.9]} 87. f4 {[%clk
0:01:12.9]} 87... Kf8 {[%clk 0:00:25.8]} 88. f5 {[%clk 0:01:14.5]} 88... Kg8
{[%clk 0:00:27.7]} 89. Ke7 {[%clk 0:01:15.6]} 1-0

[Event "*** Titled Tuesday Blitz"]
[Site "Chess.com"]
[Date "2018.09.04"]
[Round "6"]
[White "staz_staz"]
[Black "Nakachuk"]
[Result "0-1"]
[WhiteElo "2335"]
[BlackElo "2676"]
[TimeControl "180+2"]
[EndTime "14:49:24 PDT"]
[Termination "Nakachuk won by resignation"]

1. d4 {[%clk 0:02:52.2]} 1... Nf6 {[%clk 0:03:00.5]} 2. Nf3 {[%clk 0:02:52.9]}
2... g6 {[%clk 0:02:57.2]} 3. c4 {[%clk 0:02:53.8]} 3... Bg7 {[%clk 0:02:57.3]}
4. Nc3 {[%clk 0:02:54.8]} 4... O-O {[%clk 0:02:59.2]} 5. e4 {[%clk 0:02:56.3]}
5... d6 {[%clk 0:03:00.6]} 6. Be2 {[%clk 0:02:57.6]} 6... e5 {[%clk 0:03:01.7]}
7. Be3 {[%clk 0:02:59.2]} 7... Ng4 {[%clk 0:02:58.8]} 8. Bg5 {[%clk 0:03:00.4]}
8... f6 {[%clk 0:03:00.2]} 9. Bh4 {[%clk 0:03:01.3]} 9... g5 {[%clk 0:03:01.6]}
10. Bg3 {[%clk 0:03:01.2]} 10... Nh6 {[%clk 0:03:00.8]} 11. c5 {[%clk
0:03:01.6]} 11... Nc6 {[%clk 0:03:01.4]} 12. cxd6 {[%clk 0:02:48.8]} 12... cxd6
{[%clk 0:03:03.3]} 13. dxe5 {[%clk 0:02:49.8]} 13... dxe5 {[%clk 0:02:52.7]} 14.
O-O {[%clk 0:02:49.8]} 14... Be6 {[%clk 0:02:48.9]} 15. Nd5 {[%clk 0:02:46.8]}
15... f5 {[%clk 0:02:46.2]} 16. Nxg5 {[%clk 0:01:56.4]} 16... Qxg5 {[%clk
0:02:43.5]} 17. Nc7 {[%clk 0:01:56.6]} 17... Qe7 {[%clk 0:02:30.6]} 18. Nxa8
{[%clk 0:01:55.6]} 18... Rxa8 {[%clk 0:02:25.5]} 19. exf5 {[%clk 0:01:56.2]}
19... Nxf5 {[%clk 0:02:21.8]} 20. Bf3 {[%clk 0:01:56.8]} 20... Rd8 {[%clk
0:02:17.7]} 21. Qa4 {[%clk 0:01:54.5]} 21... Ncd4 {[%clk 0:02:17.9]} 22. Be4
{[%clk 0:01:51.6]} 22... h5 {[%clk 0:02:15.5]} 0-1

[Event "*** Titled Tuesday Blitz"]
[Site "Chess.com"]
[Date "2018.09.04"]
[Round "6"]
[White "nitpicker"]
[Black "TastyFrenchFries"]
[Result "1/2-1/2"]
[WhiteElo "2182"]
[BlackElo "2359"]
[TimeControl "180+2"]
[EndTime "14:49:44 PDT"]
[Termination "Game drawn by agreement"]

1. d4 {[%clk 0:03:01.9]} 1... c5 {[%clk 0:02:58.9]} 2. e3 {[%clk 0:03:00.2]}
2... g6 {[%clk 0:02:56.8]} 3. Nf3 {[%clk 0:03:00.6]} 3... Bg7 {[%clk 0:02:57.4]}
4. Bd3 {[%clk 0:02:56.5]} 4... cxd4 {[%clk 0:02:58.4]} 5. exd4 {[%clk
0:02:57.1]} 5... Nf6 {[%clk 0:02:58]} 6. O-O {[%clk 0:02:56.1]} 6... O-O {[%clk
0:02:58.1]} 7. c3 {[%clk 0:02:54.6]} 7... d6 {[%clk 0:02:48.9]} 8. h3 {[%clk
0:02:50.6]} 8... a6 {[%clk 0:02:42.7]} 9. Bf4 {[%clk 0:02:45.8]} 9... Qb6 {[%clk
0:02:37.9]} 10. Qb3 {[%clk 0:02:38.8]} 10... Qxb3 {[%clk 0:02:36.1]} 11. axb3
{[%clk 0:02:38.7]} 11... Nd5 {[%clk 0:02:35.1]} 12. Bh2 {[%clk 0:02:35.1]} 12...
Nc6 {[%clk 0:02:34.1]} 13. Nbd2 {[%clk 0:02:33.5]} 13... Bd7 {[%clk 0:02:31.3]}
14. b4 {[%clk 0:02:32.4]} 14... Rfc8 {[%clk 0:02:22.3]} 15. Bc4 {[%clk
0:02:16.1]} 15... Nb6 {[%clk 0:02:20.4]} 16. Bb3 {[%clk 0:02:16.9]} 16... a5
{[%clk 0:02:17.8]} 17. bxa5 {[%clk 0:01:54.5]} 17... Nxa5 {[%clk 0:02:19.7]} 18.
Ba2 {[%clk 0:01:51]} 18... d5 {[%clk 0:02:14.8]} 19. Rfe1 {[%clk 0:01:48.8]}
19... Kf8 {[%clk 0:02:10.3]} 20. Ne5 {[%clk 0:01:44.4]} 20... Bxe5 {[%clk
0:02:08.4]} 21. Bxe5 {[%clk 0:01:44.2]} 21... f6 {[%clk 0:01:58]} 22. Bf4 {[%clk
0:01:42.4]} 22... Nac4 {[%clk 0:01:55.5]} 23. Bxc4 {[%clk 0:01:40.3]} 23... dxc4
{[%clk 0:01:51.9]} 1/2-1/2